[Event "FIDE Womens Candidates Pool-B 2022-23"]
[Site "Khiva"]
[Date "2022.12.04"]
[Round "1.8"]
[White "Lagno, Kateryna"]
[Black "Tan, Zhongyi"]
[Result "1/2-1/2"]
[ECO "B31"]
[WhiteElo "2563"]
[BlackElo "2514"]
[Annotator "TA"]
[PlyCount "122"]
[EventDate "2022.11.28"]
[EventType "k.o."]
[EventCountry "UZB"]
[SourceTitle "playchess.com"]
[Source "ChessBase"]
[SourceQuality "1"]
[TimeControl "900+10"]

{[%evp 9,122,8,17,23,23,29,17,25,30,13,7,6,8,13,20,9,8,14,15,14,15,2,0,0,57,66,64,59,82,74,78,-9,6,16,80,0,0,0,0,0,0,0,0,0,0,0,0,0,0,0,10,0,0,0,59,0,0,0,0,0,165,150,160,115,152,155,126,74,150,152,664,126,138,129,200,178,274,262,344,313,280,252,245,0,222,0,0,0,0,0,0,0,0,0,0,0,0,0,0,0,0,0,0,0,93,0,0,0,0,0,0,0,0,0,0]} 1. e4 {[%emt 0:00:02]} c5 {[%emt 0:00:01]} 2. Nf3 {[%emt 0:00:02]} Nc6 {[%emt 0:00:02]} 3. Bb5 {[%emt 0:00:05]} g6 {[%emt 0:00:01]} 4. O-O {[%emt 0:00:02]} Bg7 {[%emt 0:00:02]} 5. d3 {[%emt 0:00:02]} d6 {[%emt 0:00:01]} 6. c3 {[%emt 0:00:04] B31: Sicilian: 2...Nc6 3 Bb5 g6.} Bg4 {[%emt 0:00:03]} 7. h3 {[%emt 0:01:44]} Bxf3 {[%emt 0:00:02]} 8. Qxf3 {[%emt 0:00:02] [#]} (8. Bxc6+ {simplifies} bxc6 9. Qxf3 Nf6 10. Bg5) 8... Nf6 $146 {[%emt 0:00:02]} ({Predecessor:} 8... Qb6 9. Na3 Nf6 10. e5 dxe5 11. Be3 Nd7 12. b4 O-O 13. Nc4 Qc7 14. bxc5 e4 15. Qxe4 Bxc3 {½-½ (47) Plat,V (2422)-Malinovsky,K (2339) Wroclaw 2010}) 9. e5 {[%emt 0:00:42]} (9. Qe2 {simplifies} O-O 10. Nd2 e5 11. Bc4) 9... dxe5 {[%emt 0:00:02]} 10. Bxc6+ {[%emt 0:00:01]} bxc6 {[%emt 0:00:02]} 11. Qxc6+ {[%emt 0:00:02]} Nd7 {[%emt 0:00:01]} 12. Na3 {[%emt 0:00:29]} O-O {[%emt 0:00:03]} 13. Nc4 {[%emt 0:01:14]} Rc8 {[%emt 0:00:08]} 14. Qe4 $36 {[%emt 0:00:39][%mdl 2048] White has good play.} Qc7 {[%emt 0:01:02]} 15. Re1 {[%emt 0:00:08]} Rfd8 {[%emt 0:00:03]} 16. a4 {[%emt 0:01:31]} Nb6 {[%emt 0:02:26]} ({Better is} 16... f6 $11) 17. Nxe5 $14 {[%emt 0:01:17]} Bxe5 {[%emt 0:00:02]} 18. Qxe5 {[%emt 0:00:02]} Qxe5 {[%emt 0:00:02]} 19. Rxe5 Rxd3 {[%emt 0:00:03]} 20. Kf1 {[%emt 0:04:54]} (20. Rxe7 $16 {And now Bh6 would win.} Rd1+ 21. Kh2) 20... Rd1+ {[%emt 0:00:03]} 21. Ke2 {[%emt 0:00:16]} Rg1 {[%emt 0:00:11]} (21... Rd7 $1 $11 {keeps the balance.}) 22. b3 {[%emt 0:00:45]} (22. a5 $1 $16 {[%cal Ra5b6]} Nc4 23. Rxe7) 22... c4 $11 {[%emt 0:03:28]} 23. bxc4 {[%emt 0:00:35]} ({But not} 23. Rxe7 cxb3 24. Bb2 Rxg2 $17) 23... Nxc4 {[%emt 0:04:25]} ({Don't do} 23... Rxc4 24. Rxe7 Rc8 25. Rxa7 $16 (25. Bb2 Rxa1 26. Bxa1 Nxa4 $14)) 24. Rxe7 {[%emt 0:00:01]} a5 {[%emt 0:00:03]} (24... Rxg2 $2 25. Bf4 $18) 25. Re4 {[%emt 0:01:54]} h5 {[%emt 0:00:43]} (25... Rxg2 $2 26. Bf4 $18) 26. g4 {[%emt 0:00:30]} hxg4 {[%emt 0:00:03]} 27. hxg4 {[%emt 0:00:06][%cal Oc1b2]} f6 {[%emt 0:02:54]} 28. Bb2 {[%emt 0:00:50]} Rxa1 {[%emt 0:00:58]} 29. Bxa1 {[%emt 0:00:01][%mdl 4096] Endgame KRB-KRN} Kf7 {[%emt 0:00:01]} 30. Kd3 {[%emt 0:00:46]} Ne5+ {[%emt 0:00:01]} 31. Kc2 {[%emt 0:00:01][%cal Og4g5]} Nc4 {[%emt 0:00:01] Against g5} (31... Ke6 $11) 32. Rd4 {[%emt 0:00:36]} (32. Bb2 $14) 32... Ke6 {[%emt 0:00:16]} 33. Kb3 {[%emt 0:00:03]} Ne5 {[%emt 0:00:18]} 34. Bb2 {[%emt 0:00:24]} f5 $2 {[%emt 0:00:14]} (34... Rb8+ $11 35. Kc2 Rc8) 35. gxf5+ $18 {[%emt 0:00:10]} gxf5 {[%emt 0:00:02]} 36. Bc1 {[%emt 0:00:06]} Ng4 {[%emt 0:00:12]} 37. f3 $1 {[%emt 0:00:23]} Ne5 {[%emt 0:00:08]} 38. Bf4 {[%emt 0:00:08]} (38. f4 $142 $1 {[%cal Rf4e5]} Rb8+ 39. Kc2) 38... Nxf3 {[%emt 0:01:44]} (38... Nd7 $142) 39. Rd6+ $16 {[%emt 0:00:01]} Ke7 $2 {[%emt 0:00:03] [#]} (39... Kf7 $16) 40. Rd5 $2 {[%emt 0:00:05]} (40. Rd3 $1 $18 Nh4 41. Bg5+ Ke6 42. Bxh4) 40... Kf6 {[%emt 0:00:34]} 41. Rxa5 {[%emt 0:00:03] White is more active.} Ne1 {[%emt 0:00:01]} (41... Ng1 $16 {keeps fighting.} 42. Ra6+ Kf7) 42. Ra6+ $18 {[%emt 0:00:10]} Kf7 {[%emt 0:00:36] [#]} (42... Ke7 {might work better.} 43. Bd6+ Ke8) 43. Rd6 $1 {[%emt 0:00:32] Hoping for a5.} Rb8+ {[%emt 0:00:31]} 44. Kc4 {[%emt 0:00:05]} Rc8+ {[%emt 0:00:29]} 45. Kb4 {[%emt 0:00:45] Black must now prevent a5.} Rb8+ {[%emt 0:00:00]} 46. Kc4 {[%emt 0:00:17] a5 is the strong threat.} Rc8+ {[%emt 0:00:01]} 47. Kd4 $2 {[%emt 0:00:07]} (47. Kb5 $18) 47... Ra8 $11 {[%emt 0:00:01] Inhibits a5.} 48. Ke5 {[%emt 0:00:15]} Ra5+ {[%emt 0:00:05]} 49. Kd4 {[%emt 0:00:07]} Rxa4+ {[%emt 0:00:32]} 50. c4 {[%emt 0:00:01]} Nf3+ {[%emt 0:00:03]} 51. Kd5 {[%emt 0:00:02]} Ne1 {[%emt 0:00:28]} 52. Kc5 {[%emt 0:00:18]} Ng2 {[%emt 0:00:05]} 53. Kb5 {[%emt 0:00:05]} Ra2 {[%emt 0:00:07]} 54. Bg5 {[%emt 0:00:12]} Rb2+ {[%emt 0:00:23]} 55. Kc6 {[%emt 0:00:01]} Rc2 {[%emt 0:00:15]} 56. c5 {[%emt 0:00:01]} Kg7 {[%emt 0:00:03]} (56... f4 $11) 57. Kb6 {[%emt 0:00:04]} (57. Bf6+ $16 Kf7 58. Bd4) 57... f4 {[%emt 0:00:01][%cal Bf5f4,Bf4f3,Bf3f2][%mdl 32] The position is equal.} 58. c6 {[%emt 0:00:04]} f3 {[%emt 0:00:03]} 59. c7 {[%emt 0:00:18]} f2 $1 {[%emt 0:00:22]} 60. Rf6 {[%emt 0:00:45] Against f1Q} Ne3 $1 {[%emt 0:00:01]} 61. Kb7 {[%emt 0:00:12][%cal Of6f2] Threatens to win with Rxf2!} Rxc7+ {[%emt 0:00:04] Blacks defense is rewarded with a draw.   Weighted Error Value: White=0.36/Black=0.32} 1/2-1/2

[Event "FIDE Womens Candidates Pool-B 2022-23"]
[Site "Khiva"]
[Date "2022.12.06"]
[Round "2.1"]
[White "Goryachkina, Aleksandra"]
[Black "Tan, Zhongyi"]
[Result "1/2-1/2"]
[ECO "D37"]
[WhiteElo "2584"]
[BlackElo "2514"]
[Annotator "TA"]
[PlyCount "195"]
[EventDate "2022.11.28"]
[EventType "k.o."]
[EventCountry "UZB"]
[SourceTitle "playchess.com"]
[Source "ChessBase"]
[SourceQuality "1"]
[TimeControl "40/5400+30:1800+30"]

{[%evp 39,195,29,14,25,25,0,12,0,0,0,0,0,0,0,0,0,0,0,0,-25,-27,-13,-18,-26,-11,-11,-11,-35,-6,-14,-12,-64,-49,-64,-33,-34,-34,-41,-42,-64,-64,-64,-64,-64,-64,-64,-64,-64,-64,-71,-47,-78,-41,-78,-39,-64,-37,-37,-37,-37,-37,-37,-41,-45,-18,-148,-116,-116,-116,-116,-116,-116,-116,-116,-116,-117,-116,-116,-116,-116,-116,-116,-116,-116,-116,-116,-119,-125,-116,-120,-29,-137,-68,-68,-68,-77,-41,-117,-31,-105,0,0,0,0,0,0,0,0,0,0,0,0,0,0,0,0,0,0,0,0,0,0,0,0,0,0,0,0,0,0,0,0,0,0,0,0,0,0,0,0,0,0,0,0,0,0,0,0,0,0,0,0,0,0,0,0,0,0]} 1. d4 {[%emt 0:00:10]} d5 {[%emt 0:00:07]} 2. c4 {[%emt 0:00:14]} e6 {[%emt 0:00:05]} 3. Nf3 {[%emt 0:00:16]} Nf6 {[%emt 0:00:09]} 4. Nc3 {[%emt 0:00:12]} a6 {[%emt 0:00:50]} 5. c5 {[%emt 0:07:38]} b6 {[%emt 0:00:09]} 6. cxb6 {[%emt 0:00:19]} cxb6 {[%emt 0:00:05]} 7. Bf4 {[%emt 0:00:46]} Bd6 {[%emt 0:01:25]} 8. e3 {[%emt 0:02:20]} O-O {[%emt 0:01:04]} 9. Bd3 {[%emt 0:01:05]} Bb7 {[%emt 0:00:40]} 10. O-O {[%emt 0:01:23]} Nc6 {[%emt 0:02:49]} 11. Rc1 {[%emt 0:04:26]} h6 {[%emt 0:13:13]} 12. a3 {[%emt 0:04:09]} Bxf4 {[%emt 0:00:23]} 13. exf4 {[%emt 0:00:04]} Qd6 {[%emt 0:00:05]} 14. g3 {[%emt 0:05:05]} Rac8 {[%emt 0:05:18]} 15. Re1 {[%emt 0:02:56]} Ne7 {[%emt 0:02:17]} 16. Ne5 {[%emt 0:06:22]} Rc7 {[%emt 0:00:51]} 17. Qe2 {[%emt 0:02:54]} b5 {[%emt 0:07:23]} 18. Na2 {[%emt 0:05:33]} Rfc8 {[%emt 0:01:08]} 19. Rxc7 {[%emt 0:09:10]} Rxc7 {[%emt 0:00:07]} 20. Nc1 {[%emt 0:00:17]} b4 {[%emt 0:09:44]} 21. Nb3 {[%emt 0:05:07]} bxa3 {[%emt 0:00:42]} 22. bxa3 {[%emt 0:01:02]} Ne4 {[%emt 0:07:03]} 23. Qb2 {[%emt 0:01:53]} Qb6 {[%emt 0:01:31]} 24. Rb1 {[%emt 0:03:23]} f6 {[%emt 0:15:44]} 25. Ng4 {[%emt 0:04:37]} Nf5 {[%emt 0:02:39]} 26. Ne3 {[%emt 0:07:53]} (26. Nc5 Qxb2 27. Rxb2 Nxc5 28. dxc5 d4 $17) 26... Nfd6 {[%emt 0:04:46]} 27. Bxe4 {[%emt 0:07:32]} Nxe4 {[%emt 0:00:40]} 28. f3 {[%emt 0:03:15]} Nc3 {[%emt 0:05:04]} 29. Rc1 {[%emt 0:00:43]} Na4 {[%emt 0:01:30]} 30. Qd2 {[%emt 0:00:31]} Rxc1+ {[%emt 0:01:51]} 31. Nxc1 {[%emt 0:00:03]} a5 {[%emt 0:00:18]} 32. Kg2 {[%emt 0:04:32]} Nb2 {[%emt 0:02:13]} 33. Qc3 {[%emt 0:03:19]} (33. f5 $5 {[%cal Rf5e6]}) 33... Nc4 {[%emt 0:01:06]} 34. Nxc4 {[%emt 0:05:05]} dxc4 {[%emt 0:00:06]} 35. Ne2 {[%emt 0:01:00]} (35. f5 $11) 35... Bd5 {[%emt 0:01:49]} 36. Kf2 {[%emt 0:00:22]} a4 {[%emt 0:01:19]} 37. h4 {[%emt 0:00:44]} Qb1 {[%emt 0:01:12]} 38. Qc1 {[%emt 0:00:45]} Qb7 {[%emt 0:01:48]} 39. Qc3 {[%emt 0:00:25]} h5 {[%emt 0:00:12]} 40. Qe3 {[%emt 0:00:33]} Kf7 {[%emt 0:04:10]} (40... Qb2 41. f5 $11) 41. Qc3 {[%emt 0:31:16]} Qb1 {[%emt 0:32:43]} 42. Qc1 {[%emt 0:00:00]} Qa2 {[%emt 0:00:00]} 43. Ke3 {[%emt 0:00:00]} Qb3+ {[%emt 0:00:00]} 44. Nc3 {[%emt 0:00:00]} Bc6 {[%emt 0:00:00]} 45. Kf2 {[%emt 0:00:00]} Kf8 {[%emt 0:00:00]} (45... f5 {with more complications.} 46. Ke3 Bb7 47. Ke2 Ba8) 46. Ke3 {[%emt 0:00:00]} Be8 {[%emt 0:00:00]} 47. Kf2 {[%emt 0:00:00]} Bg6 {[%emt 0:00:00]} 48. d5 {[%emt 0:00:00]} exd5 {[%emt 0:00:00]} 49. Nxd5 {[%emt 0:00:00]} Qa2+ {[%emt 0:00:00]} 50. Ke3 $1 {[%emt 0:00:00]} Bd3 {[%emt 0:00:00]} 51. Nc3 {[%emt 0:00:00]} Qg2 {[%emt 0:00:00]} (51... Qb3 {simplifies} 52. Kf2 Bf5 53. Ne2 Kf7) 52. Qe1 {[%emt 0:00:00]} (52. Nxa4 $11 Qe2+ 53. Kd4) 52... Qb2 {[%emt 0:00:00]} 53. Nxa4 {[%emt 0:00:00]} Qxa3 {[%emt 0:00:00]} 54. Nc3 {[%emt 0:00:00]} Qb2 {[%emt 0:00:00]} ({Weaker is} 54... Qd6 55. Kf2 $15) 55. Nd5 {[%emt 0:00:00] [#]} Kg8 $1 {[%emt 0:00:00]} 56. Nc3 {[%emt 0:00:26]} Kh7 {[%emt 0:00:00]} 57. Nd1 {[%emt 0:02:05]} Qb6+ {[%emt 0:00:09]} 58. Kd2 {[%emt 0:00:01]} Qb4+ {[%emt 0:00:22]} 59. Nc3 {[%emt 0:00:06]} Qb2+ {[%emt 0:01:12]} 60. Ke3 {[%emt 0:00:02]} Qb6+ {[%emt 0:00:23]} 61. Kd2 {[%emt 0:00:03]} Bg6 {[%emt 0:02:35]} 62. Qe3 {[%emt 0:00:58]} Qb2+ {[%emt 0:00:29]} 63. Ke1 {[%emt 0:00:12]} Bd3 {[%emt 0:00:14]} 64. Nd1 {[%emt 0:02:09]} Qb4+ {[%emt 0:03:31]} (64... Qb1 $17 {Threatens to win with ...Bc2.} 65. Qd2 Qb6) 65. Qd2 {[%emt 0:00:33]} (65. Kf2 $11) 65... Qc5 {[%emt 0:01:49]} (65... Qb6 $17 {[%cal Rb6g1]} 66. Qe3 Qa5+ 67. Qd2 Qa7) 66. Qe3 $1 $15 {[%emt 0:01:11]} Qa5+ {[%emt 0:00:02]} 67. Qd2 $1 {[%emt 0:00:13]} Qa1 {[%emt 0:00:20]} 68. Qb2 {[%emt 0:00:59]} (68. Kf2 $15) 68... Qa8 {[%emt 0:00:09]} ({Better is} 68... Qa7 $17 {Strongly threatening ...Qg1+.} 69. Qf2 Qa8) 69. Qf2 {[%emt 0:01:01]} (69. Kf2 $15) 69... f5 {[%emt 0:02:08]} (69... Kh6 $17) 70. Qe3 $11 {[%emt 0:00:49]} Bc2 {[%emt 0:00:32]} 71. Nc3 {[%emt 0:00:50]} Qa1+ {[%emt 0:00:29]} 72. Kd2 {[%emt 0:00:44]} Qb2 {[%emt 0:01:01]} 73. Ke1 {[%emt 0:00:43]} Bd3 {[%emt 0:01:52]} 74. Nd1 {[%emt 0:00:26]} Qb4+ {[%emt 0:00:18]} (74... Qg2 $5 75. Qf2 $8 Qh1+ 76. Kd2 Kg8 $11) 75. Qd2 {[%emt 0:00:16]} Qb1 {[%emt 0:00:06]} 76. Kf2 {[%emt 0:00:41]} Qb6+ {[%emt 0:01:42]} 77. Qe3 {[%emt 0:01:49]} Qa5 {[%emt 0:00:04]} 78. Qe1 {[%emt 0:00:53]} Qa2+ {[%emt 0:00:05]} 79. Ke3 {[%emt 0:00:31]} Bb1 {[%emt 0:03:06]} ({Reject} 79... Qa7+ 80. Kd2 $15) 80. Nc3 {[%emt 0:00:36]} Qa7+ {[%emt 0:00:04]} 81. Kd2 {[%emt 0:00:03]} Qd4+ {[%emt 0:00:11]} 82. Kc1 {[%emt 0:00:07]} Bd3 {[%emt 0:00:03]} (82... Ba2 {keeps more tension.} 83. Qe5 Qg1+ 84. Kb2 Qf2+) 83. Kb2 {[%emt 0:00:57]} Qb6+ {[%emt 0:00:18]} 84. Kc1 $1 {[%emt 0:00:11]} Qb7 {[%emt 0:01:53]} ({Don't play} 84... Qb3 85. Kd2 $15) 85. Qf2 {[%emt 0:00:22]} Qb3 {[%emt 0:00:17]} 86. Qb2 {[%emt 0:00:42]} Kg6 {[%emt 0:00:27]} 87. Qxb3 {[%emt 0:01:22]} cxb3 {[%emt 0:00:05]} 88. Kb2 {[%emt 0:00:02]} Bc2 {[%emt 0:00:06]} 89. Nb5 {[%emt 0:00:18]} Kf6 {[%emt 0:01:19]} 90. Nd4 {[%emt 0:00:02]} Bd1 {[%emt 0:00:21]} 91. Kc1 {[%emt 0:00:22]} Bc2 {[%emt 0:00:35]} 92. Nxc2 {[%emt 0:01:21]} bxc2 {[%emt 0:00:04]} 93. Kxc2 {[%emt 0:00:03]} Ke6 {[%emt 0:00:03]} 94. Kc3 {[%emt 0:01:36]} Kd5 {[%emt 0:00:05]} 95. Kd3 {[%emt 0:00:05]} g6 {[%emt 0:00:05]} 96. Kc3 $1 {[%emt 0:00:55]} Kc5 {[%emt 0:00:06]} 97. Kd3 {[%emt 0:00:32]} Kd5 {[%emt 0:00:05]} 98. Kc3 {[%emt 0:00:24]} 1/2-1/2

[Event "FIDE Womens Candidates Pool-B 2022-23"]
[Site "Khiva"]
[Date "2022.12.07"]
[Round "2.2"]
[White "Tan, Zhongyi"]
[Black "Goryachkina, Aleksandra"]
[Result "1/2-1/2"]
[ECO "D36"]
[WhiteElo "2514"]
[BlackElo "2584"]
[Annotator "TA"]
[PlyCount "80"]
[EventDate "2022.11.28"]
[EventType "k.o."]
[EventCountry "UZB"]
[SourceTitle "playchess.com"]
[Source "ChessBase"]
[SourceQuality "1"]
[TimeControl "40/5400+30:1800+30"]

{[%evp 23,80,9,0,0,12,13,0,27,37,28,39,39,35,30,40,33,23,28,48,31,54,14,21,15,20,24,57,35,35,35,35,33,28,8,20,0,0,0,0,0,0,0,0,0,0,0,0,0,0,0,0,0,0,0,0,0,0,0,0]} 1. d4 {[%emt 0:00:04]} d5 {[%emt 0:00:10]} 2. c4 {[%emt 0:00:06]} c6 {[%emt 0:00:08]} 3. Nf3 {[%emt 0:00:09]} Nf6 {[%emt 0:00:07]} 4. Nc3 {[%emt 0:00:11]} e6 {[%emt 0:00:18]} 5. Bg5 {[%emt 0:01:24]} Nbd7 {[%emt 0:00:50]} 6. cxd5 {[%emt 0:00:25]} exd5 {[%emt 0:00:13]} 7. e3 {[%emt 0:00:05]} Be7 {[%emt 0:00:18]} 8. Bd3 {[%emt 0:01:22]} Ne4 {[%emt 0:01:15]} 9. Bf4 {[%emt 0:01:16]} Ndf6 {[%emt 0:00:48]} 10. Qc2 {[%emt 0:00:18]} O-O {[%emt 0:00:53]} 11. O-O {[%emt 0:02:00]} Bd6 {[%emt 0:04:59]} 12. Ne5 {[%emt 0:09:37][%cal Bf3e5,Be5d3,Bd3f4,Bf4d5][%mdl 32]} Re8 {[%emt 0:03:04]} 13. h3 $1 {[%emt 0:00:26] D36: Queen's Gambit Declined: Exchange Variation: Main line (5 Bg5 c6 6 Qc2).} Nxc3 {[%emt 0:06:08]} 14. bxc3 {[%emt 0:00:10]} Qc7 {[%emt 0:02:21]} 15. c4 {[%emt 0:06:06] [#]} dxc4 $146 {[%emt 0:05:21]} ({Predecessor:} 15... c5 16. Rac1 Be6 17. cxd5 Bxd5 18. Rfd1 Rac8 19. Qb1 Qe7 20. e4 Be6 21. Be3 cxd4 22. Bxd4 Bxe5 23. Bxe5 Bxa2 24. Qxa2 Qxe5 25. Qxa7 {½-½ (31) Sun,W (2318)-Tapia,A (2355) ICCF email 2019}) 16. Bxc4 {[%emt 0:00:06]} Be6 {[%emt 0:00:38]} 17. Nd3 {[%emt 0:01:29]} (17. Bxe6 {simplifies} Rxe6 18. Nd3 Bxf4 19. Nxf4 Rd6 20. Rfc1) 17... Bxc4 {[%emt 0:04:07]} 18. Qxc4 {[%emt 0:00:06]} Ne4 {[%emt 0:03:14] [#] Strongly threatening ...Nd2.} 19. Rfd1 {[%emt 0:03:57] Inhibits Nd2.} Bxf4 {[%emt 0:03:06]} 20. Nxf4 {[%emt 0:00:07]} Rad8 {[%emt 0:01:10]} 21. a4 {[%emt 0:01:48]} c5 {[%emt 0:08:11]} 22. a5 {[%emt 0:24:40]} (22. Nd5 $5 {[%cal Rd5c7]} Qc6 23. dxc5 Qxc5 24. Qb3 $14) 22... h6 {[%emt 0:04:40]} 23. Nd5 {[%emt 0:08:11]} (23. f3 {simplifies} Nf6 24. Qxc5 Qxc5 25. dxc5 Rxd1+ 26. Rxd1 Rxe3 27. Rd8+) 23... Qd6 {[%emt 0:11:50]} (23... Qc6 {simplifies} 24. dxc5 Qxc5 25. Qxc5 Nxc5 26. f3 Kf8) 24. dxc5 {[%emt 0:00:40]} Nxc5 {[%emt 0:04:36]} (24... Qxc5 {simplifies} 25. Qxc5 Nxc5 26. f3 Kf8) 25. Rd4 {[%emt 0:03:49]} (25. Rac1 $5 {[%cal Rc4c5]} b6 26. Qb5 $16) 25... Re4 {[%emt 0:07:34]} 26. Rad1 {[%emt 0:05:27]} Rxd4 {[%emt 0:00:17]} 27. Rxd4 {[%emt 0:00:09]} Qf8 {[%emt 0:01:14]} 28. e4 {[%emt 0:08:08]} Ne6 {[%emt 0:01:26] The position is equal.} 29. Rd3 {[%emt 0:00:25]} Kh8 {[%emt 0:01:06]} 30. Rc3 {[%emt 0:01:46]} Qd6 {[%emt 0:01:15]} 31. Rb3 {[%emt 0:02:17]} Nc5 {[%emt 0:05:29]} 32. Rb5 {[%emt 0:00:53]} Nxe4 {[%emt 0:01:31]} 33. Qxe4 {[%emt 0:02:37]} a6 {[%emt 0:01:59]} 34. Rxb7 {[%emt 0:01:00]} Qxd5 {[%emt 0:00:02]} 35. Qxd5 {[%emt 0:00:09]} Rxd5 {[%emt 0:00:02]} 36. Rxf7 {[%emt 0:00:08]} Rxa5 $11 {[%emt 0:00:02] KR-KR} 37. Ra7 {[%emt 0:00:07]} Kh7 {[%emt 0:00:30]} 38. g4 {[%emt 0:00:05]} h5 {[%emt 0:01:26]} 39. Kg2 {[%emt 0:00:06]} hxg4 {[%emt 0:00:48]} 40. hxg4 {[%emt 0:00:05]} Ra4 {[%emt 0:01:50] Weighted Error Value: White=0.07 (flawless) /Black=0.06 (flawless)} 1/2-1/2

[Event "FIDE Womens Candidates Pool-B 2022-23"]
[Site "Khiva"]
[Date "2022.12.09"]
[Round "2.3"]
[White "Goryachkina, Aleksandra"]
[Black "Tan, Zhongyi"]
[Result "1/2-1/2"]
[ECO "E11"]
[WhiteElo "2584"]
[BlackElo "2514"]
[Annotator "TA"]
[PlyCount "89"]
[EventDate "2022.11.28"]
[EventType "k.o."]
[EventCountry "UZB"]
[SourceTitle "playchess.com"]
[Source "ChessBase"]
[SourceQuality "1"]
[TimeControl "40/5400+30:1800+30"]

{[%evp 12,89,16,15,24,27,15,16,18,11,19,12,18,0,30,0,3,0,3,0,0,0,-6,-15,-10,-15,0,-5,0,0,0,0,0,0,0,1,10,0,0,0,0,0,0,0,2,7,4,2,4,4,4,0,0,0,0,0,34,34,11,0,19,0,0,0,0,0,27,27,27,27,27,27,27,27,27,27,27,27,27,0]} 1. d4 {[%emt 0:00:23]} Nf6 {[%emt 0:00:19]} 2. c4 {[%emt 0:00:13]} e6 {[%emt 0:00:05]} 3. Nf3 {[%emt 0:00:15]} Bb4+ {[%emt 0:00:09]} 4. Nbd2 {[%emt 0:01:35]} d5 {[%emt 0:00:35]} 5. e3 {[%emt 0:05:16]} O-O {[%emt 0:00:13]} 6. Bd3 {[%emt 0:02:33]} dxc4 {[%emt 0:01:42]} 7. Bxc4 {[%emt 0:00:19]} b6 {[%emt 0:00:13] E11: Bogo-Indian.} 8. O-O {[%emt 0:01:13]} Bb7 {[%emt 0:00:04]} 9. a3 {[%emt 0:05:26]} Be7 {[%emt 0:00:18] The position is equal.} 10. b3 {[%emt 0:01:06]} Nbd7 {[%emt 0:01:32]} 11. Bb2 {[%emt 0:00:19]} c5 {[%emt 0:00:07] [#]} 12. Rc1 $146 {[%emt 0:04:23]} ({Predecessor:} 12. dxc5 Nxc5 13. b4 Nce4 14. Qe2 Rc8 15. Rfd1 Nxd2 16. Rxd2 Qc7 17. Bd3 Ne4 18. Rc2 Qb8 19. Ne5 Rxc2 20. Bxc2 {1-0 (33) Praggnanandhaa,R (2624)-Yoo,C (2532) Chess.com INT 2022}) 12... a6 {[%emt 0:01:34]} 13. dxc5 {[%emt 0:08:07]} Nxc5 {[%emt 0:02:52]} 14. Ne5 {[%emt 0:03:12]} b5 {[%emt 0:05:22]} 15. Be2 {[%emt 0:00:18]} Rc8 {[%emt 0:00:12]} ({Much less strong is} 15... Qd5 16. Bf3 Qd6 17. Qc2 $14) 16. Bd4 {[%emt 0:01:23]} Ncd7 {[%emt 0:03:09]} 17. Rxc8 {[%emt 0:11:31]} Qxc8 {[%emt 0:00:30]} 18. Nxd7 {[%emt 0:00:30]} Qxd7 {[%emt 0:00:31]} 19. b4 {[%emt 0:07:10]} Ne4 {[%emt 0:02:59]} 20. Nxe4 {[%emt 0:03:46]} Bxe4 {[%emt 0:00:21]} 21. Qa1 {[%emt 0:01:09]} f6 {[%emt 0:00:55]} 22. Rd1 {[%emt 0:00:46]} Qb7 {[%emt 0:00:58]} 23. f3 {[%emt 0:00:56]} Bd5 {[%emt 0:02:14]} 24. Rc1 {[%emt 0:11:52]} Rc8 {[%emt 0:00:18]} 25. Rxc8+ {[%emt 0:01:51]} Qxc8 {[%emt 0:00:05]} 26. e4 {[%emt 0:01:24]} Bb3 {[%emt 0:02:51][%cal Bd5b3,Bb3c2,Bc2e4][%mdl 32]} 27. Qb2 {[%emt 0:02:51]} Qc2 {[%emt 0:00:07]} 28. Qxc2 {[%emt 0:01:28]} Bxc2 $11 {[%emt 0:00:05][%mdl 4096] Endgame KBB-KBB} 29. e5 {[%emt 0:04:04]} Kf7 {[%emt 0:00:21]} 30. Kf2 {[%emt 0:00:19]} f5 {[%emt 0:01:03]} 31. Ke3 {[%emt 0:01:37]} Ke8 {[%emt 0:01:42]} 32. f4 {[%emt 0:03:10]} Be4 {[%emt 0:00:06]} 33. g4 {[%emt 0:02:19]} Kd7 {[%emt 0:00:27]} 34. g5 {[%emt 0:01:56]} Kc6 {[%emt 0:00:50]} 35. Bd1 {[%emt 0:00:25]} Bd5 {[%emt 0:05:25]} 36. h4 {[%emt 0:00:35]} a5 {[%emt 0:09:35]} 37. Bc3 {[%emt 0:00:57]} ({Much weaker is} 37. bxa5 Bxa3 38. Kd2 Kb7 $17) 37... axb4 {[%emt 0:00:06]} 38. Bxb4 {[%emt 0:04:20]} Bxb4 {[%emt 0:00:50]} 39. axb4 {[%emt 0:00:04] KB-KB. White has an edge.} h6 {[%emt 0:00:04]} 40. Kd4 {[%emt 0:02:39]} Bc4 {[%emt 0:00:30]} 41. Bf3+ {[%emt 0:32:06]} Kb6 {[%emt 0:30:06]} 42. Bh5 {[%emt 0:04:37]} Bb3 {[%emt 0:01:03]} 43. Bg6 {[%emt 0:00:00]} Kc6 {[%emt 0:00:00]} 44. Bh7 {[%emt 0:00:00]} Ba2 {[%emt 0:00:00]} 45. Bg6 {[%emt 0:00:00] A balanced but interesting game.   Weighted Error Value: White=0.02 (flawless) /Black=0.04 (flawless)} 1/2-1/2